{"text_format":"2","workbook":"xlsx","n_sheets":7,"sheets":["Főösszesítő","Munkanem összesítő","2.Bontás, építőanyagok újraha","19.Költségtérítések","36.Vakolás és rabicolás","47.Felületképzés","90.Ideiglenes felületvédelem é"],"not_rendered":{"charts":0,"images":0,"macros":0,"external_links":0,"defined_names":0,"comments":0,"pivot_tables":0},"unopened":[],"bounds":{"document_bytes":16777216,"sheet_cells":100000,"run_cost":"one","rows_first":2000,"rows_last":500,"rows_between":2000,"halvings":0,"cell_chars":16384,"cell_head_chars":4096},"cells_cut":0,"cells_raw":0,"read":"whole","date_system":"1900"}

{"sheet":"Főösszesítő","index":0,"n_rows":17,"n_cols":4,"rows_kept":17,"cut":false,"hidden":false,"merged":[[16,2,16,3],[5,0,5,3],[7,0,7,3],[10,2,10,3],[11,2,11,3],[12,2,12,3]]}
["Tárgy: SZTE SZAOK Szent-Györgyi Albert Oktatási Központ helyiségeinek festési munkái"]
[]
["Kitöltötte:"]
["Cégnév:"]
["Székhely:"]
[]
[]
["Költségvetés főösszesítő"]
["Megnevezés",null,"Anyagköltség","Díjköltség"]
["1 Építmény közvetlen költségei",null,{"$f":"'Munkanem összesítő'!C7","v":0},{"$f":"'Munkanem összesítő'!D7","v":0}]
["2.1 ÁFA vetítési alap",null,{"$f":"ROUND(C10+D10,0)","v":0}]
["2.2 ÁFA",0.27,{"$f":"ROUND(C11*B12,0)","v":0}]
["3 A munka ára (HUF)",null,{"$f":"ROUND(C12+C11,0)","v":0}]
[]
[]
[]
[null,null,"Aláírás"]

{"sheet":"Munkanem összesítő","index":1,"n_rows":7,"n_cols":4,"rows_kept":7,"cut":false,"hidden":false,"merged":[]}
["Ssz.","Megnevezés","Anyagköltség","Díjköltség"]
["2","Bontás, építőanyagok újrahasznosítása",{"$f":"'2.Bontás, építőanyagok újraha'!H3","v":0},{"$f":"'2.Bontás, építőanyagok újraha'!I3","v":0}]
["19","Költségtérítések",{"$f":"'19.Költségtérítések'!H3","v":0},{"$f":"'19.Költségtérítések'!I3","v":0}]
["36","Vakolás és rabicolás",{"$f":"'36.Vakolás és rabicolás'!H3","v":0},{"$f":"'36.Vakolás és rabicolás'!I3","v":0}]
["47","Felületképzés",{"$f":"'47.Felületképzés'!H6","v":0},{"$f":"'47.Felületképzés'!I6","v":0}]
["90","Ideiglenes felületvédelem és takarítási munkák",{"$f":"'90.Ideiglenes felületvédelem é'!H4","v":0},{"$f":"'90.Ideiglenes felületvédelem é'!I4","v":0}]
[null,"Összesen (HUF)",{"$f":"ROUND(SUM(C2:C6),0)","v":0},{"$f":"ROUND(SUM(D2:D6),0)","v":0}]

{"sheet":"2.Bontás, építőanyagok újraha","index":2,"n_rows":3,"n_cols":9,"rows_kept":3,"cut":false,"hidden":false,"merged":[]}
["Ssz.","Tételszám","Tétel szövege","Menny.","Egység","Anyag egységár","Díj egységre","Anyag összesen","Díj összesen"]
[1,"02-020-8.2.1.1","Kiegészítő munkák, bútorok mozgatása helyszínen, kézi erővel, 10,0 m távolságig",1,"tétel",0,0,{"$f":"ROUND(F2*D2,0)","v":0},{"$f":"ROUND(G2*D2,0)","v":0}]
[null,null,"Munkanem összesen (HUF)",{"$nulls":4},{"$f":"ROUND(SUM(H2:H2),0)","v":0},{"$f":"ROUND(SUM(I2:I2),0)","v":0}]

{"sheet":"19.Költségtérítések","index":3,"n_rows":3,"n_cols":9,"rows_kept":3,"cut":false,"hidden":false,"merged":[]}
["Ssz.","Tételszám","Tétel szövege","Menny.","Egység","Anyag egységár","Díj egységre","Anyag összesen","Díj összesen"]
[1,"19-090-1","Építmények átadás előtti utolsó takarítása (pipere)",1,"db",0,0,{"$f":"ROUND(F2*D2,0)","v":0},{"$f":"ROUND(G2*D2,0)","v":0}]
[null,null,"Munkanem összesen (HUF)",{"$nulls":4},{"$f":"ROUND(SUM(H2:H2),0)","v":0},{"$f":"ROUND(SUM(I2:I2),0)","v":0}]

{"sheet":"36.Vakolás és rabicolás","index":4,"n_rows":3,"n_cols":9,"rows_kept":3,"cut":false,"hidden":false,"merged":[]}
["Ssz.","Tételszám","Tétel szövege","Menny.","Egység","Anyag egységár","Díj egységre","Anyag összesen","Díj összesen"]
[1,"36-090-1.1.1-0550030","Vakolatjavítás oldalfalon, tégla-, beton-, kőfelületen vagy építőlemezen, a meglazult, sérült vakolat előzetes leverésével, hiánypótlás 5% alatt, Hvb4-mc, beltéri, vakoló, cementes mészhabarcs mészpéppel",1,"m²",0,0,{"$f":"ROUND(F2*D2,0)","v":0},{"$f":"ROUND(G2*D2,0)","v":0}]
[null,null,"Munkanem összesen (HUF)",{"$nulls":4},{"$f":"ROUND(SUM(H2:H2),0)","v":0},{"$f":"ROUND(SUM(I2:I2),0)","v":0}]

{"sheet":"47.Felületképzés","index":5,"n_rows":6,"n_cols":9,"rows_kept":6,"cut":false,"hidden":false,"merged":[]}
["Ssz.","Tételszám","Tétel szövege","Menny.","Egység","Anyag egységár","Díj egységre","Anyag összesen","Díj összesen"]
[1,"47-000-1.3.1.1","Belső festéseknél felület előkészítése, részmunkák; vizes diszperziós falfesték lekaparása, bármilyen padozatú helységben, tagolatlan felületen",72,"m²",0,0,{"$f":"ROUND(F2*D2,0)","v":0},{"$f":"ROUND(G2*D2,0)","v":0}]
[2,"47-010-2.1.1-0419506","Enyhén nedvszívó vagy sima falfelületek  tapadásközvetítő alapozása, vizes-diszperziós, akril bázisú alapozóval, tagolatlan felületen, POLI-FARBE Inntaler diszperziós mélyalapozó",720,"m²",0,0,{"$f":"ROUND(F3*D3,0)","v":0},{"$f":"ROUND(G3*D3,0)","v":0}]
[3,"47-000-1.21.4.1.1-0419482","Belső festéseknél felület előkészítése, részmunkák; glettelés diszperziós kötőanyagú glettel, vakolt felületen, tagolatlan felületen, POLI-FARBE kész glett, beltéri, kézi- és gépi felhordásra",72,"m²",0,0,{"$f":"ROUND(F4*D4,0)","v":0},{"$f":"ROUND(G4*D4,0)","v":0}]
[4,"47-011-15.1.1.1-0160011","Diszperziós festés (két rétegben) műanyag bázisú vizes-diszperziós  fehér vagy gyárilag színezett festékkel, új vagy régi lekapart, előkészített alapfelületen, vakolaton, két rétegben, tagolatlan sima felületen, POLI-FARBE Inntaler diszperziós beltéri, fehér falfesték",720,"m²",0,0,{"$f":"ROUND(F5*D5,0)","v":0},{"$f":"ROUND(G5*D5,0)","v":0}]
[null,null,"Munkanem összesen (HUF)",{"$nulls":4},{"$f":"ROUND(SUM(H2:H5),0)","v":0},{"$f":"ROUND(SUM(I2:I5),0)","v":0}]

{"sheet":"90.Ideiglenes felületvédelem é","index":6,"n_rows":4,"n_cols":9,"rows_kept":4,"cut":false,"hidden":false,"merged":[]}
["Ssz.","Tételszám","Tétel szövege","Menny.","Egység","Anyag egységár","Díj egységre","Anyag összesen","Díj összesen"]
[1,"90-008-1-0110202","Festés előtt burkolatok takarásának készítése, Takarás készítése fóliával",3,"100 m²",0,0,{"$f":"ROUND(F2*D2,0)","v":0},{"$f":"ROUND(G2*D2,0)","v":0}]
[2,"90-008-2","Festés után burkolatok takarásának felszedése",3,"100 m²",0,0,{"$f":"ROUND(F3*D3,0)","v":0},{"$f":"ROUND(G3*D3,0)","v":0}]
[null,null,"Munkanem összesen (HUF)",{"$nulls":4},{"$f":"ROUND(SUM(H2:H3),0)","v":0},{"$f":"ROUND(SUM(I2:I3),0)","v":0}]